Cogmind - Beta 13 @@@ ROGUE MODE // 2024.04.04 @ 13:56:51 Player: DiscountHorde Result: Self-destructed Performance ------------- Evolutions (1) 500 Regions Visited (3) 600 Robots Destroyed (58) 290 Value Destroyed (1668) 1668 Prototype IDs (0) 0 Alien Tech Used (0) 0 Bonus (35) 35 TOTAL SCORE: 3093 Bonus ------- High Alert Combat Kills 35 Cogmind --------- Core Integrity 9/400 Matter 18/300 Energy 100/100 System Corruption 0% Temperature Cool (9) Movement Core (350) Ox6 Location -9/Materials Parts ------- > --- POWER (2) -------- (None) > --- PROPULSION (3) --- (None) > --- UTILITY (2) ------ Large Storage Unit > --- WEAPON (2) ------- (None) > --- INVENTORY (15) --- Light Ion Engine Light Ion Engine Improved Ion Engine Improved Treads Structural Scanner Structural Scanner Hardened Light Armor Plating Field Recycling Unit (0) Field Laser Field Laser Field Laser Field Laser Field Laser Field Laser Field Laser Peak State ------------ > --- POWER ------------ Light Ion Engine > --- PROPULSION ------- Light Treads Light Treads Light Treads > --- UTILITY ---------- Large Storage Unit Structural Scanner > --- WEAPON ----------- Field Laser Field Laser > --- INVENTORY -------- Ion Engine Light Ion Engine Backup Power I Improved Treads Structural Scanner Field Laser Field Laser Field Laser Field Laser Field Laser Field Laser Light Assault Rifle Light Cannon Rocket Launcher Mini Grenade Launcher [Rating: 15] Favorites ----------- Power Light Ion Engine Engine Light Ion Engine Propulsion Light Treads Treads Light Treads Wheel Compact Wheel Utility Large Storage Unit Device Heat Sink Storage Large Storage Unit Weapon Small Laser Energy Gun Small Laser Ballistic Gun Light Assault Rifle Ballistic Cannon Light Cannon Launcher Mini Grenade Launcher Build | -11 -10 -10 -9 ------- Run | Yrd Mat Min Mat Slots Evolved 2 | . . . 2 Power 1 | . . . 1 Propulsion 1 | . . . 1 Utility . | . . . . Weapon . | . . . . Parts Attached 52 | 6 15 2 29 Power 11 | . 2 1 8 Engine 11 | . 2 1 8 Core . | . . . . Reactor . | . . . . Propulsion 14 | 2 3 1 8 Treads 11 | 2 3 1 5 Leg . | . . . . Wheel 3 | . . . 3 Hover . | . . . . Flight . | . . . . Utility 6 | 1 3 . 2 Device 3 | . 1 . 2 Storage 3 | 1 2 . . Processor . | . . . . Hackware . | . . . . Protection . | . . . . Artifact . | . . . . Weapon 21 | 3 7 . 11 Energy Gun 10 | 2 4 . 4 Energy Cannon . | . . . . Ballistic Gun 5 | 1 2 . 2 Ballistic Cannon 2 | . 1 . 1 Launcher 4 | . . . 4 Special Weapon . | . . . . Impact Weapon . | . . . . Slashing Weapon . | . . . . Piercing Weapon . | . . . . Special Melee Weapon . | . . . . Unidentified Prototypes . | . . . . Parts Lost 20 | . 3 . 17 Power 6 | . 1 . 5 Propulsion 9 | . 2 . 7 Utility . | . . . . Weapon 5 | . . . 5 Highest Loss Streak 8 | . 2 . 8 To Critical Strikes . | . . . . Average Slot Usage (%) 83 | . 89 100 74 Engine 12 | . 10 14 12 Treads 23 | . 26 28 21 Device 9 | . 9 14 8 Storage 12 | . 14 14 11 Energy Gun 14 | . 20 28 7 Ballistic Gun 3 | . 5 . 3 Launcher 5 | . . . 9 Naked Turns . | . . . . Heaviest Build 38 | 8 30 26 38 Greatest Support 63 | 40 40 40 63 Greatest Overweight (x) 9 | . 1 . 9 Average Overweight (x) . | . . . . Largest Inventory Capacity 15 | 8 15 15 15 Average Capacity 13 | 7 11 15 15 Most Carried 15 | 4 13 9 15 Average Carried 9 | 2 7 8 11 Final Capacity 15 | 8 15 15 15 Final Carried 15 | 4 10 9 15 Class Distribution -------------------- 73% | Mutant 26% | Scavenger-Mutant Dominant Class ---------------- Mutant | -10/Materials Scavenger-Mutant | -10/Mines Mutant | -9/Materials Resources | -11 -10 -10 -9 ----------- Run | Yrd Mat Min Mat Matter Collected 855 | 243 186 20 406 Remotely . | . . . . Salvage Created 1650 | 52 494 104 1000 Parts 102 | 1 33 . 68 Haulers Intercepted 1 | . 1 . . Recyclers Shooed 4 | 1 . . 3 Parts Field Recycled 2 | . . . 2 Retrieved Matter 5 | . . . 5 Parts Self-Destructed . | . . . . Prevented . | . . . . Kills | -11 -10 -10 -9 ------- Run | Yrd Mat Min Mat Combat Hostiles Destroyed 42 | . 13 2 27 Guns 22 | . 11 2 9 Cannons 4 | . 1 . 3 AOE 15 | . . . 15 Classes Destroyed 12 | 1 6 . 5 Worker 3 | . . . 3 Builder 2 | . . . 2 Tunneler 1 | . . . 1 Hauler 1 | . 1 . . Recycler 2 | 1 . . 1 Mechanic 2 | . 1 . 1 Operator 2 | . 1 . 1 Watcher 3 | . 1 . 2 Swarmer 6 | . 6 . . Grunt 26 | . 7 2 17 Duelist 1 | . . . 1 Sentry 9 | . . . 9 Best Kill Streak 8 | 1 3 2 8 Combat Bots Only 6 | . 3 2 6 Max Kills in Single Turn 3 | 1 2 1 3 Gunslinging 1 | . 1 . . Exploded 2 | . . . 2 Melee . | . . . . Uniques/NPCs Destroyed . | . . . . Combat | -11 -10 -10 -9 -------- Run | Yrd Mat Min Mat Hostile Shots Fired 265 | . 83 9 173 Missed 73 | . 23 4 46 Damage Taken 2591 | . 569 69 1953 Core 449 | . 48 10 391 Absorbed by Shields . | . . . . Core Remaining (%) 88 | 100 . 76 . Volleys Fired 151 | 2 50 6 93 Largest 2 | 2 2 2 2 Hottest 126 | 90 90 80 126 Shots Fired 271 | 4 99 12 156 Gun 216 | 4 95 12 105 Cannon 16 | . 4 . 12 Launcher 39 | . . . 39 Special . | . . . . Kinetic 58 | . 34 . 24 Thermal 174 | 4 65 12 93 Explosive 39 | . . . 39 Electromagnetic . | . . . . Robot Hit Streak 25 | 4 8 7 25 Robot Miss Streak 4 | . 4 4 3 Penetration Max . | . . . . Secondary Targets 2 | . 2 . . Max Gunslinging Chain 1 | . 1 . . Shots Hit Robots 169 | 4 58 6 101 Core Hits 106 | 3 28 7 68 Critical Kills . | . . . . Critical Parts Destroyed 1 | . . . 1 Critical Strikes 4 | . 3 . 1 Burn 3 | . 3 . . Destroy 1 | . . . 1 Melee Attacks . | . . . . Impact . | . . . . Slashing . | . . . . Piercing . | . . . . Sneak Attacks . | . . . . Combat Hostiles . | . . . . Follow-up Attacks . | . . . . Damage Inflicted 3786 | 57 656 88 2985 Guns 1706 | 48 616 86 956 Cannons 248 | . 40 . 208 Explosions 1793 | . . . 1793 Melee . | . . . . Ramming 39 | 9 . 2 28 Kinetic 423 | . 149 . 274 Thermal 1531 | 48 507 86 890 Explosive 1793 | . . . 1793 Electromagnetic . | . . . . Impact . | . . . . Slashing . | . . . . Piercing . | . . . . Highest Corruption . | . . . . Average Corruption . | . . . . Corruption Purged . | . . . . Corruption Blocked . | . . . . Overload Shots . | . . . . Overflow Damage 102 | . . . 102 Projectiles . | . . . . Explosions 102 | . . . 102 Melee . | . . . . Knockbacks . | . . . . Impact . | . . . . Kinetic . | . . . . Secondary . | . . . . Self-Inflicted Damage 247 | . . . 247 Shots 6 | . . . 6 Rammed 11 | 3 . 2 6 Targets Rammed 11 | 3 . 2 6 Kicked . | . . . . Crushed . | . . . . Highest Temperature 537 | 30 174 6 537 Average Temperature 95 | 15 41 3 124 Received Heat Transfer 999 | . 186 39 774 Effects 14 | . . . 14 Shutdowns 3 | . . . 3 Energy Bleed 2 | . . . 2 Interference 1 | . . . 1 Matter Decay 3 | . . . 3 Short Circuit 1 | . . . 1 Damage (minor) 1 | . . . 1 Damage (major) 3 | . . . 3 Siege Activations . | . . . . Robots Corrupted . | . . . . Combat Hostiles . | . . . . Parts Fried . | . . . . Impact Corruptions . | . . . . Robots Melted 1 | . 1 . . Combat Hostiles 1 | . 1 . . Parts Melted 6 | . 2 . 4 Heat Transferred 3855 | 124 1561 200 1970 Parts Sabotaged . | . . . . Parts Stolen . | . . . . Parts Stripped . | . . . . Power Chain Reactions . | . . . . Alert | -11 -10 -10 -9 ------- Run | Yrd Mat Min Mat Peak Influence 504 | 5 212 81 504 Initial 31 | . 3 31 . Average 145 | 3 79 65 212 Maximum Alert Level 2 | . 1 . 2 Low Security (%) 68 | 100 96 100 43 Level 1 23 | . 3 . 41 Level 2 7 | . . . 14 Level 3 . | . . . . Level 4 . | . . . . Level 5 . | . . . . High Security . | . . . . Max Security . | . . . . Squads Dispatched 9 | . 4 . 5 Investigation 2 | . 1 . 1 Extermination . | . . . . Reinforcement 6 | . 3 . 3 Assault 1 | . . . 1 Garrison . | . . . . Intercept . | . . . . Searches Triggered . | . . . . Construction Impeded 2 | . . . 2 Haulers Reinforced . | . . . . Active Scanning Responses . | . . . . Cargo Convoy Interrupts . | . . . . Stealth | -11 -10 -10 -9 --------- Run | Yrd Mat Min Mat Distress Signals 4 | . 1 . 3 Communications Jammed . | . . . . Distress Signals . | . . . . Times Spotted 68 | . 23 2 43 Peak Tracking Total 6 | . 4 2 6 Tactical Retreats 1 | . . . 1 Traps | -11 -10 -10 -9 ------- Run | Yrd Mat Min Mat Traps Triggered 6 | . 5 . 1 Indirectly . | . . . . Trap Hack Attempts . | . . . . Triggered . | . . . . Disarmed . | . . . . Reprogrammed . | . . . . Reused . | . . . . Traps Extracted . | . . . . Installed . | . . . . Triggered . | . . . . Machines | -11 -10 -10 -9 ---------- Run | Yrd Mat Min Mat Machines Disabled 8 | . . . 8 Max in Single Turn 1 | . . . 1 Machines Repaired . | . . . . Machines Dismantled . | . . . . Machines Sabotaged . | . . . . Overloaded Fab Kills . | . . . . Hacking | -11 -10 -10 -9 --------- Run | Yrd Mat Min Mat Machines Accessed 5 | . 1 . 4 Terminals 3 | . . . 3 Fabricators . | . . . . Repair Stations . | . . . . Recycling Units 1 | . 1 . . Scanalyzers 1 | . . . 1 Garrison Access . | . . . . Total Hacks 16 | . 5 . 11 Successful 10 | . 3 . 7 Failed 6 | . 2 . 4 Catastrophic 1 | . . . 1 Database Lockouts . | . . . . Manual . | . . . . Terminals 8 | . . . 8 Fabricators . | . . . . Repair Stations . | . . . . Recycling Units 5 | . 5 . . Scanalyzers 3 | . . . 3 Garrison Access . | . . . . Terminal Hacks 4 | . . . 4 Alert Level 1 | . . . 1 Unreport Threat 1 | . . . 1 Locate Traps 1 | . . . 1 Surveillance Status 1 | . . . 1 Fabricator Hacks . | . . . . Repair Station Hacks . | . . . . Recycling Unit Hacks 3 | . 3 . . Process 1 | . 1 . . Retrieve Matter 1 | . 1 . . Retrieve Components 1 | . 1 . . Scanalyzer 3 | . . . 3 Insert Component 2 | . . . 2 Analyze 1 | . . . 1 Garrison Access Hacks . | . . . . Unauthorized Hacks . | . . . . Terminals . | . . . . Fabricators . | . . . . Repair Stations . | . . . . Recycling Units . | . . . . Scanalyzers . | . . . . Garrison Access . | . . . . Data Cores Recovered . | . . . . Used . | . . . . Hacking Detections 5 | . 1 . 4 Full Trace Events 1 | . . . 1 Feedback Events . | . . . . Feedback Blocked . | . . . . Robot Schematics Acquired . | . . . . Robots Built . | . . . . Authchips . | . . . . Time . | . . . . Total Robot Build Rating . | . . . . Part Schematics Acquired 1 | . . . 1 Parts Built . | . . . . Authchips . | . . . . Time . | . . . . Total Part Build Rating . | . . . . Parts Repaired . | . . . . Time . | . . . . Parts Recycled . | . . . . Recycled Matter 47 | . 47 . . Retrieved Matter 47 | . 47 . . Retrieved Components . | . . . . Parts Scanalyzed 1 | . . . 1 Part Schematics Acquired 1 | . . . 1 Parts Damaged . | . . . . Bothacking | -11 -10 -10 -9 ------------ Run | Yrd Mat Min Mat Used RIF Installer . | . . . . Robots Hacked . | . . . . Non-combat . | . . . . Combat . | . . . . Robot Hacks Applied . | . . . . Relay Couplers Released . | . . . . Fabnet Peak Effective % . | . . . . Robots Rewired . | . . . . Allies Hacked . | . . . . Hacks Repelled . | . . . . Allies | -11 -10 -10 -9 -------- Run | Yrd Mat Min Mat Total Allies . | . . . . Largest Group . | . . . . Highest-Rated Group . | . . . . Highest-Rated Ally . | . . . . Total Orders . | . . . . Ally Attacks . | . . . . Total Damage . | . . . . Kills . | . . . . Allies Corrupted . | . . . . Allies Melted . | . . . . Intel | -11 -10 -10 -9 ------- Run | Yrd Mat Min Mat Robot Analysis Total . | . . . . Derelict Logs Recovered 1 | . . 1 . Drone Launches . | . . . . Drone Recoveries . | . . . . Exploration | -11 -10 -10 -9 ------------- Run | Yrd Mat Min Mat Turns Passed 3101 | 102 891 458 1650 Spaces Moved 1447 | 60 419 272 696 Core 33 | 18 6 . 9 Treads 1381 | 42 413 272 654 Legs . | . . . . Wheels 33 | . . . 33 Hover . | . . . . Flight . | . . . . Fastest Speed 50 | 50 100 160 100 Average Speed 172 | 127 165 160 184 Slowest Speed 500 | 160 240 160 500 Overloaded Moves . | . . . . Propulsion Burnouts . | . . . . Robots Hopped . | . . . . Cave-ins Triggered . | . . . . Exploration Rate (%) 46 | 3 67 51 63 Regions Visited 3 Branch Regions 1 Pre-discovered Areas . | . . . . Known Exits Taken . | . . . . Unknown Exits Taken 3 | 1 1 1 . Scrap Searched . | . . . . Spaces Dug . | . . . . Terrain Destroyed 228 | . . . 228 Melee . | . . . . Projectile . | . . . . AOE 228 | . . . 228 Terrain Rammed . | . . . . Walls Destroyed . | . . . . Machines Disabled . | . . . . Actions | -11 -10 -10 -9 --------- Run | Yrd Mat Min Mat Total 1800 | 81 528 282 909 Wait 39 | . 11 . 28 Move 1445 | 60 418 271 696 Hop . | . . . . Pick Up 71 | 10 24 1 36 Fast Attach . | . . . . Attach 31 | 6 8 2 15 Detach 2 | . . . 2 Swap 21 | . 7 . 14 Drop 30 | 1 10 . 19 Fire 151 | 2 50 6 93 Melee . | . . . . Ram . | . . . . Kick . | . . . . Crush 10 | 2 . 2 6 Escape Stasis . | . . . . Rewire . | . . . . Trap . | . . . . Miscellaneous . | . . . . Route ------- -11/Scrapyard -10/Materials (discovered 4 exits: *Mat x3 / [*Min]) -10/Mines -9/Materials (discovered 2 exits: *Mat x2) History --------- Turn | Location | Event 31 | -11/Scrapyard | Discovered new exit (range 15) 103 | -11/Scrapyard | Entered Materials 130 | -10/Materials | Discovered new exit (range 15) 308 | -10/Materials | Build established: Mutant 409 | -10/Materials | Discovered new exit (range 8) 518 | -10/Materials | Discovered new exit (range 11) 716 | -10/Materials | Discovered new exit (range 12) 994 | -10/Materials | Entered Mines 1014 | -10/Mines | Learned 8 Materials zone layouts 1149 | -10/Mines | Build established: Scavenger-Mutant 1411 | -10/Mines | Discovered new exit (range 15) 1433 | -10/Mines | Received a Rocket Launcher from a helpful Derelict 1452 | -10/Mines | Entered Materials 1452 | -9/Materials | Evolved 2 slots: Power x1, Propulsion x1 1453 | -9/Materials | Identified exit to Materials 1749 | -9/Materials | Lost 8 parts (3p3n2w) 1917 | -9/Materials | Core integrity fell below 50% 1979 | -9/Materials | Build established: Mutant 2062 | -9/Materials | Discovered exit to Materials (range 7) 2801 | -9/Materials | Core integrity fell below 20% 2888 | -9/Materials | Lost 5 parts (2p2n1w) 3052 | -9/Materials | First assault squad dispatched 3102 | -9/Materials | Self-destructed Last Messages --------------- U-05 Engineer lays Concrete. U-05 Engineer builds a Wall. U-05 Engineer lays Concrete. Connecting with Terminal... >>Enumerate(Surveillance) Retrieving latest reported positions... Found 2 active surveillance squads. Downloaded coordinate data. Slammed into W-16 Scout. ALERT: Significant disruption in Zone 7F, assault force dispatched. [Achievement: Significant Disruption] Slammed into K-01 Serf. K-01 Serf destroyed. Lgt. Treads destroyed. Destroyed Lgt. Treads. Rocket Launcher destroyed. Destroyed Rocket Launcher. Terminal disabled. Mni. Grenade Launcher destroyed. Map ----- +----------------------------------------------------+ | ???????????????????????????????????????????? | | ???????????????????????????????????????????? | | ???????????????????????????????????????????? | | ???????????????????????????????????????????? | | ???????????????????????????????????????????? | | ???????????????????????????????????????????? | | ???????????????????????????????????????????? | | ???????????????????????????????????????????? | | ???????????????????????????????????????????? | | ???????????????????????????????????????????? | | ???????????????????????????????????????????? | | ???????????????????????####????????????????? | | ??????????????????????? ????????????????? | | ??????????????????????? #???????????????? | | ??????????????????????? +???????????????? | | ??????????????######???# ########????????? | | ??????????????# ???# #????????? | | ??????????????# ??# #????????? | | ???????######## w?# #????????? | | ???????# # ?# #????????? | | ???????# # # #????????? | | ???????# # # #?????????? | | ######## !# #?????????? | | # #? #?????????? | | + #????? ????????????? | | # #????????# @ #???????????????? | | ###### # #???????# #???????????????? | | ?????# # #???????## #???????????????? | | ?????# # ! #???????? #???????????????? | | ?????# # #########g=g #???????????????? | | ###### # / g%= #???????????????? | | # ! ######## #???????????????? | | ###############??????#######???????????????? | | ???????????????????????????????????????????? | | ???????????????????????????????????????????? | | ???????????????????????????????????????????? | | ???????????????????????????????????????????? | | | | | | | | | | | | | | | | | | | | | | | | | | | +----------------------------------------------------+ Best States ------------- Heat Dissipation 38 Energy Generation 17 Energy Capacity 415 Matter Stores 300 Matter Capacity 300 Sight Range 16 Terrain Scan Density 10 Evasion (%) 50 Recoil Reduction 3 Item Schematics ----------------- Lgt. Assault Rifle | -9/Materials | Scanalyzed Robot Schematics ------------------ None Fabricated ------------ Nothing Alien Tech Used ----------------- None Achievements -------------- Everything Is Under Control Significant Disruption Challenges ------------ None Game ------ Seed SurveybotGrapheneInverter Manual? 0 Play Time 00:21:18 Cumulative 4.6 hours Start 2024.04.03 @ 15:13:09 End 2024.04.04 @ 13:56:51 Sessions 5 Manual Loads 0 Difficulty Rogue Special Mode None Game No. 12 Rogue 12 Adventurer 0 Explorer 0 Win Type - Total 0 Types 0/0/0/0/0/0/0/0/0 Lore% 3 Gallery% 12 Achievement% 11 Wizard Run 0 Options --------- Layout 1 ASCII 0 Keyboard 0 Movement Arrows Keybinds 0 Fullscreen 1 Font 24/Smallcaps Map View 50x35 Zoom Use 0% Tactical HUD 0 Map Filters NONE Filters NONE Steam 1 RUN: 13f4c1a1-030a-4850-b5f3-2a922799c722